{"text_format":"1","workbook":"xlsx","n_sheets":2,"sheets":["Таблица","История согласования"],"not_rendered":{"charts":0,"images":0,"macros":1,"external_links":0,"defined_names":10,"comments":0,"pivot_tables":0},"unopened":[],"bounds":{"document_bytes":16777216,"sheet_cells":100000,"rows_first":2000,"rows_last":500,"rows_between":2000,"halvings":0,"cell_chars":16384,"cell_head_chars":4096},"cells_cut":0,"cells_raw":0,"read":"whole","date_system":"1900"}

{"sheet":"Таблица","index":0,"n_rows":9,"n_cols":20,"rows_kept":9,"cut":false,"hidden":false,"merged":[[4,13,4,16],[0,0,0,12],[1,0,1,12],[2,0,2,12],[4,0,4,5],[4,6,4,9],[4,10,4,11]]}
["РЕЕСТР"]
["заявок на закупку товаров, работ, услуг"]
["в 2015 году (по г. Москве)"]
[]
["Реквизиты заявки на закупку",null,null,null,null,null,"Аналитическая информация по заявке",null,null,null,"Информация о потребителе",null,null,"Реквизиты договора"]
["№ заявки","Дата поступления заявки","Полное наименование заявки","Сумма заявки, рублей","Ответственный исполнитель","Контакт. телефон","КОСГУ","Источник финансирования","Группа расходов","Контрагент","Наименование потребителя","Адрес потребителя","Мероприятие\n(если имеется)","№ договора","Дата заключения договора","Срок действия договора","Сумма договора,\nрублей","Статус","Дополнительно","Комплект документов"]
[null,"2015-01-15","Стирка прямого белья в Санатории-профилактории",10000,null,null,225,"внебюджет","стирка белья","ООО Чистый круг","Санаторий-профилакторий для студентов и сотрудников",null,null,"10-02/14","2015-02-10","2015-12-31",10000,{"$f":"IFERROR(IF(MOD(MATCH(MAX(Таблица1[[#This Row],[Тип документа]:[Решение22]]),Таблица1[[#This Row],[Тип документа]:[Решение22]],1)+2,5)=0,INDIRECT(\"'История согласования'!R\"&ROW()&\"C\"&MATCH(MAX(Таблица1[[#This Row],[Тип документа]:[Решение22]]),Таблица1[[#This Row],[Тип документа]:[Решение22]],1)+1,FALSE)&\" \"&INDIRECT(\"'История согласования'!R\"&ROW()&\"C\"&MATCH(MAX(Таблица1[[#This Row],[Тип документа]:[Решение22]]),Таблица1[[#This Row],[Тип документа]:[Решение22]],1)+5,FALSE)&\" \"&INDIRECT(\"'История согласования'!R\"&ROW()&\"C\"&MATCH(MAX(Таблица1[[#This Row],[Тип документа]:[Решение22]]),Таблица1[[#This Row],[Тип документа]:[Решение22]],1)+2,FALSE),INDIRECT(\"'История согласования'!R\"&ROW()&\"C\"&MATCH(MAX(Таблица1[[#This Row],[Тип документа]:[Решение22]]),Таблица1[[#This Row],[Тип документа]:[Решение22]],1),FALSE)&\" \"&INDIRECT(\"'История согласования'!R\"&ROW()&\"C\"&MATCH(MAX(Таблица1[[#This Row],[Тип документа]:[Решение22]]),Таблица1[[#This Row],[Тип документа]:[Решение22]],1)+4,FALSE)&\" \"&INDIRECT(\"'История согласования'!R\"&ROW()&\"C\"&MATCH(MAX(Таблица1[[#This Row],[Тип документа]:[Решение22]]),Таблица1[[#This Row],[Тип документа]:[Решение22]],1)+1,FALSE)),\"\")","v":"Договор заключен Починок"}]
[null,"2015-01-15","Услуги по экспресс-доставке отправлений специальной связи, включая прием, обработку, доставку (вручение) экспресс-отправлений.",50000,null,null,221,"внебюджет","прочие услуги связи","ФГУП Главный центр специальной связи","Управление делами и кадров",null,null,"1035-14/15","2015-05-21","2015-12-31",50000,{"$f":"IFERROR(IF(MOD(MATCH(MAX(Таблица1[[#This Row],[Тип документа]:[Решение22]]),Таблица1[[#This Row],[Тип документа]:[Решение22]],1)+2,5)=0,INDIRECT(\"'История согласования'!R\"&ROW()&\"C\"&MATCH(MAX(Таблица1[[#This Row],[Тип документа]:[Решение22]]),Таблица1[[#This Row],[Тип документа]:[Решение22]],1)+1,FALSE)&\" \"&INDIRECT(\"'История согласования'!R\"&ROW()&\"C\"&MATCH(MAX(Таблица1[[#This Row],[Тип документа]:[Решение22]]),Таблица1[[#This Row],[Тип документа]:[Решение22]],1)+5,FALSE)&\" \"&INDIRECT(\"'История согласования'!R\"&ROW()&\"C\"&MATCH(MAX(Таблица1[[#This Row],[Тип документа]:[Решение22]]),Таблица1[[#This Row],[Тип документа]:[Решение22]],1)+2,FALSE),INDIRECT(\"'История согласования'!R\"&ROW()&\"C\"&MATCH(MAX(Таблица1[[#This Row],[Тип документа]:[Решение22]]),Таблица1[[#This Row],[Тип документа]:[Решение22]],1),FALSE)&\" \"&INDIRECT(\"'История согласования'!R\"&ROW()&\"C\"&MATCH(MAX(Таблица1[[#This Row],[Тип документа]:[Решение22]]),Таблица1[[#This Row],[Тип документа]:[Решение22]],1)+4,FALSE)&\" \"&INDIRECT(\"'История согласования'!R\"&ROW()&\"C\"&MATCH(MAX(Таблица1[[#This Row],[Тип документа]:[Решение22]]),Таблица1[[#This Row],[Тип документа]:[Решение22]],1)+1,FALSE)),\"\")","v":"Проект договора возвращен на доработку Желтова"}]
[null,"2015-01-16","Товары для обеспечения РГСУ: бумага формата А4",100000,null,null,340,"внебюджет","бумага","ООО Алком-М","Хозяйственное управление",null,null,"15-03/16","2015-06-30","2016-03-01",100000,{"$f":"IFERROR(IF(MOD(MATCH(MAX(Таблица1[[#This Row],[Тип документа]:[Решение22]]),Таблица1[[#This Row],[Тип документа]:[Решение22]],1)+2,5)=0,INDIRECT(\"'История согласования'!R\"&ROW()&\"C\"&MATCH(MAX(Таблица1[[#This Row],[Тип документа]:[Решение22]]),Таблица1[[#This Row],[Тип документа]:[Решение22]],1)+1,FALSE)&\" \"&INDIRECT(\"'История согласования'!R\"&ROW()&\"C\"&MATCH(MAX(Таблица1[[#This Row],[Тип документа]:[Решение22]]),Таблица1[[#This Row],[Тип документа]:[Решение22]],1)+5,FALSE)&\" \"&INDIRECT(\"'История согласования'!R\"&ROW()&\"C\"&MATCH(MAX(Таблица1[[#This Row],[Тип документа]:[Решение22]]),Таблица1[[#This Row],[Тип документа]:[Решение22]],1)+2,FALSE),INDIRECT(\"'История согласования'!R\"&ROW()&\"C\"&MATCH(MAX(Таблица1[[#This Row],[Тип документа]:[Решение22]]),Таблица1[[#This Row],[Тип документа]:[Решение22]],1),FALSE)&\" \"&INDIRECT(\"'История согласования'!R\"&ROW()&\"C\"&MATCH(MAX(Таблица1[[#This Row],[Тип документа]:[Решение22]]),Таблица1[[#This Row],[Тип документа]:[Решение22]],1)+4,FALSE)&\" \"&INDIRECT(\"'История согласования'!R\"&ROW()&\"C\"&MATCH(MAX(Таблица1[[#This Row],[Тип документа]:[Решение22]]),Таблица1[[#This Row],[Тип документа]:[Решение22]],1)+1,FALSE)),\"\")","v":"Заявка  Рабочая комиссия"}]

{"sheet":"История согласования","index":1,"n_rows":9,"n_cols":113,"rows_kept":9,"cut":false,"hidden":false,"merged":[[4,23,4,27],[4,0,4,2],[4,3,4,7],[4,8,4,12],[4,13,4,17],[4,18,4,22],[4,83,4,87],[4,28,4,32],[4,33,4,37],[4,38,4,42],[4,43,4,47],[4,48,4,52],[4,53,4,57],[4,58,4,62],[4,63,4,67],[4,68,4,72],[4,73,4,77],[4,78,4,82],[4,88,4,92],[4,93,4,97],[4,98,4,102],[4,103,4,107],[4,108,4,112]]}
[]
[]
[]
[]
["История согласования заявки",null,null,{"$f":"\"Этап \"&(TRUNC(COLUMN(A1)/5)+1)","v":"Этап 1"},null,null,null,null,{"$f":"\"Этап \"&(TRUNC(COLUMN(E1)/5)+1)","v":"Этап 2"},null,null,null,null,{"$f":"\"Этап \"&(TRUNC(COLUMN(J1)/5)+1)","v":"Этап 3"},null,null,null,null,{"$f":"\"Этап \"&(TRUNC(COLUMN(O1)/5)+1)","v":"Этап 4"},null,null,null,null,{"$f":"\"Этап \"&(TRUNC(COLUMN(T1)/5)+1)","v":"Этап 5"},null,null,null,null,{"$f":"\"Этап \"&(TRUNC(COLUMN(Y1)/5)+1)","v":"Этап 6"},null,null,null,null,{"$f":"\"Этап \"&(TRUNC(COLUMN(AD1)/5)+1)","v":"Этап 7"},null,null,null,null,{"$f":"\"Этап \"&(TRUNC(COLUMN(AI1)/5)+1)","v":"Этап 8"},null,null,null,null,{"$f":"\"Этап \"&(TRUNC(COLUMN(AN1)/5)+1)","v":"Этап 9"},null,null,null,null,{"$f":"\"Этап \"&(TRUNC(COLUMN(AS1)/5)+1)","v":"Этап 10"},null,null,null,null,{"$f":"\"Этап \"&(TRUNC(COLUMN(AX1)/5)+1)","v":"Этап 11"},null,null,null,null,{"$f":"\"Этап \"&(TRUNC(COLUMN(BD1)/5)+1)","v":"Этап 12"},null,null,null,null,{"$f":"\"Этап \"&(TRUNC(COLUMN(BH1)/5)+1)","v":"Этап 13"},null,null,null,null,{"$f":"\"Этап \"&(TRUNC(COLUMN(BM1)/5)+1)","v":"Этап 14"},null,null,null,null,{"$f":"\"Этап \"&(TRUNC(COLUMN(BR1)/5)+1)","v":"Этап 15"},null,null,null,null,{"$f":"\"Этап \"&(TRUNC(COLUMN(BW1)/5)+1)","v":"Этап 16"},null,null,null,null,{"$f":"\"Этап \"&(TRUNC(COLUMN(CB1)/5)+1)","v":"Этап 17"},null,null,null,null,{"$f":"\"Этап \"&(TRUNC(COLUMN(CG1)/5)+1)","v":"Этап 18"},null,null,null,null,{"$f":"\"Этап \"&(TRUNC(COLUMN(CL1)/5)+1)","v":"Этап 19"},null,null,null,null,{"$f":"\"Этап \"&(TRUNC(COLUMN(CQ1)/5)+1)","v":"Этап 20"},null,null,null,null,{"$f":"\"Этап \"&(TRUNC(COLUMN(CV1)/5)+1)","v":"Этап 21"},null,null,null,null,{"$f":"\"Этап \"&(TRUNC(COLUMN(DA1)/5)+1)","v":"Этап 22"}]
["Дата поступления заявки","Полное наименование заявки","Сумма заявки, рублей","Тип документа","Наименование согласующего органа","Дата передачи","Дата возврата","Решение","Тип документа2","Наименование согласующего органа2","Дата передачи2","Дата возврата2","Решение2","Тип документа3","Наименование согласующего органа3","Дата передачи3","Дата возврата3","Решение3","Тип документа4","Наименование согласующего органа4","Дата передачи4","Дата возврата4","Решение4","Тип документа5","Наименование согласующего органа5","Дата передачи5","Дата возврата5","Решение5","Тип документа6","Наименование согласующего органа6","Дата передачи6","Дата возврата6","Решение6","Тип документа7","Наименование согласующего органа7","Дата передачи7","Дата возврата7","Решение7","Тип документа8","Наименование согласующего органа8","Дата возврата8","Дата передачи82","Решение8","Тип документа9","Наименование согласующего органа9","Дата передачи9","Дата возврата9","Решение9","Тип документа10","Наименование согласующего органа10","Дата передачи10","Дата возврата10","Решение10","Тип документа11","Наименование согласующего органа11","Дата передачи11","Дата возврата11","Решение11","Тип документа12","Наименование согласующего органа12","Дата передачи12","Дата возврата12","Решение12","Тип документа13","Наименование согласующего органа13","Дата передачи13","Дата возврата13","Решение13","Тип документа14","Наименование согласующего органа14","Дата передачи14","Дата возврата14","Решение14","Тип документа15","Наименование согласующего органа15","Дата передачи15","Дата возврата15","Решение15","Тип документа16","Наименование согласующего органа16","Дата передачи16","Дата возврата16","Решение16","Тип документа17","Наименование согласующего органа17","Дата передачи17","Дата возврата17","Решение17","Тип документа18","Наименование согласующего органа18","Дата передачи18","Дата возврата18","Решение18","Тип документа19","Наименование согласующего органа19","Дата передачи19","Дата возврата19","Решение19","Тип документа20","Наименование согласующего органа20","Дата передачи20","Дата возврата20","Решение20","Тип документа21","Наименование согласующего органа21","Дата передачи21","Дата возврата21","Решение21","Тип документа22","Наименование согласующего органа22","Дата передачи22","Дата возврата22","Решение22"]
["2015-01-15","Стирка прямого белья в Санатории-профилактории",10000,"Заявка","Рабочая комиссия","2015-01-20","2015-01-21","утвержд.","Заявка","Ходырев","2015-01-22","2015-01-23","согласов.","Заявка","Кучина","2015-01-23","2015-01-24","согласов.",null,null,null,null,null,null,null,null,null,null,null,null,null,null,null,null,null,null,null,null,null,null,null,null,null,null,null,null,null,null,null,null,null,null,null,null,null,null,null,null,"Проект договора","Желтова","2015-01-15","2015-01-17","согласов.","Проект договора","Правовое Управление","2015-02-01","2015-02-02","согласов.","Договор","Починок","2015-02-04","2015-02-07","заключен"]
["2015-01-15","Услуги по экспресс-доставке отправлений специальной связи, включая прием, обработку, доставку (вручение) экспресс-отправлений.",50000,"Заявка","Рабочая комиссия","2015-01-20","2015-01-21","утвержд.","Заявка","Ходырев","2015-01-22","2015-01-23","согласов.","Заявка","Кучина","2015-01-23","2015-01-24","согласов.",null,null,null,null,null,null,null,null,null,null,null,null,null,null,null,null,null,null,null,null,null,null,null,null,null,null,null,null,null,null,null,null,null,null,null,null,null,null,null,null,"Проект договора","Желтова","2015-01-12","2015-01-17","возвращен на доработку"]
["2015-01-16","Товары для обеспечения РГСУ: бумага формата А4",100000,"Заявка","Рабочая комиссия","2015-01-20"]